[Event "Early-Titled-Tuesday-Blitz-January-23-2024"]
[Site "Chess.com"]
[Date "2024.01.23"]
[Round "2"]
[White "vesalhamedinia"]
[Black "GoValya"]
[Result "0-1"]
[WhiteElo "2501"]
[BlackElo "2295"]
[TimeControl "180+1"]
[EndTime "8:18:15 PST"]
[Termination "GoValya won by resignation"]

1. d4 {[%clk 0:03:00.9]} 1... g6 {[%clk 0:02:57.9]} 2. c4 {[%clk 0:03:01]} 2...
Bg7 {[%clk 0:02:58.2]} 3. Nf3 {[%clk 0:03:00.5]} 3... c5 {[%clk 0:02:58.4]} 4.
e3 {[%clk 0:03:00.5]} 4... cxd4 {[%clk 0:02:58.3]} 5. exd4 {[%clk 0:03:00.5]}
5... d5 {[%clk 0:02:58.5]} 6. cxd5 {[%clk 0:02:59]} 6... Nf6 {[%clk 0:02:57.8]}
7. Nc3 {[%clk 0:02:59.5]} 7... Nxd5 {[%clk 0:02:56.9]} 8. Bc4 {[%clk 0:03:00]}
8... Nxc3 {[%clk 0:02:56.5]} 9. bxc3 {[%clk 0:03:00.9]} 9... O-O {[%clk
0:02:56.7]} 10. O-O {[%clk 0:03:00.9]} 10... Qc7 {[%clk 0:02:56.6]} 11. Qe2
{[%clk 0:03:01]} 11... Bg4 {[%clk 0:02:51.3]} 12. Rb1 {[%clk 0:02:46.3]} 12...
Bxf3 {[%clk 0:02:44.3]} 13. gxf3 {[%clk 0:02:46.1]} 13... Nc6 {[%clk 0:02:44.6]}
14. Re1 {[%clk 0:02:42.5]} 14... a6 {[%clk 0:02:33.4]} 15. Bg5 {[%clk
0:02:41.7]} 15... e6 {[%clk 0:02:27.3]} 16. Bh4 {[%clk 0:02:39.5]} 16... b5
{[%clk 0:02:19.1]} 17. Bd3 {[%clk 0:02:37.5]} 17... Qa5 {[%clk 0:02:19.4]} 18.
Rec1 {[%clk 0:02:31.1]} 18... Rac8 {[%clk 0:02:18.1]} 19. Bg3 {[%clk 0:02:29.3]}
19... Rfe8 {[%clk 0:02:16.5]} 20. Be4 {[%clk 0:02:23.9]} 20... Qa3 {[%clk
0:02:12.2]} 21. Qd2 {[%clk 0:02:18.2]} 21... Na5 {[%clk 0:01:47.2]} 22. Rc2
{[%clk 0:01:57.7]} 22... Red8 {[%clk 0:01:37.3]} 23. Qe1 {[%clk 0:01:54.2]}
23... h5 {[%clk 0:01:23.9]} 24. Bh4 {[%clk 0:01:49]} 24... Rd7 {[%clk
0:01:22.3]} 25. Bg5 {[%clk 0:01:23.7]} 25... Rdc7 {[%clk 0:01:19.5]} 26. Rbc1
{[%clk 0:01:10.4]} 26... Qd6 {[%clk 0:01:11.3]} 27. Bh4 {[%clk 0:00:54.4]} 27...
Qa3 {[%clk 0:01:05.1]} 28. Bg5 {[%clk 0:00:53.8]} 28... Nc4 {[%clk 0:00:59.1]}
29. Bf4 {[%clk 0:00:49.3]} 29... e5 {[%clk 0:00:56.2]} 30. Bg3 {[%clk
0:00:40.2]} 30... Re7 {[%clk 0:00:41.4]} 31. d5 {[%clk 0:00:24.2]} 31... f5
{[%clk 0:00:41.4]} 32. Bd3 {[%clk 0:00:23.6]} 32... Qc5 {[%clk 0:00:40.8]} 33.
Bh4 {[%clk 0:00:21.8]} 33... Ree8 {[%clk 0:00:38.9]} 34. Rd1 {[%clk 0:00:20.4]}
34... e4 {[%clk 0:00:33.3]} 35. fxe4 {[%clk 0:00:20.4]} 35... fxe4 {[%clk
0:00:33.8]} 36. Bxe4 {[%clk 0:00:17.2]} 36... Ne5 {[%clk 0:00:34.1]} 37. Re2
{[%clk 0:00:16.8]} 37... Qxc3 {[%clk 0:00:30.7]} 38. Bg3 {[%clk 0:00:16.3]}
38... Qxe1+ {[%clk 0:00:17.6]} 39. Rdxe1 {[%clk 0:00:17.2]} 39... Ng4 {[%clk
0:00:16.6]} 40. Bxg6 {[%clk 0:00:16.9]} 40... Rxe2 {[%clk 0:00:15.5]} 41. Rxe2
{[%clk 0:00:17.8]} 41... h4 {[%clk 0:00:13.1]} 42. Bxh4 {[%clk 0:00:17.7]} 42...
Ne5 {[%clk 0:00:13.5]} 43. Bf5 {[%clk 0:00:17.2]} 43... Nf3+ {[%clk 0:00:13.4]}
44. Kf1 {[%clk 0:00:13.9]} 44... Rc1+ {[%clk 0:00:13.1]} 45. Kg2 {[%clk
0:00:13.5]} 45... Nxh4+ {[%clk 0:00:13.8]} 46. Kh3 {[%clk 0:00:13.7]} 46... Nxf5
{[%clk 0:00:14.4]} 47. Re5 {[%clk 0:00:14.1]} 47... Bxe5 {[%clk 0:00:12.7]} 48.
Kg4 {[%clk 0:00:14.6]} 48... Nd6 {[%clk 0:00:12.4]} 49. h4 {[%clk 0:00:15.1]}
49... Rc4+ {[%clk 0:00:12]} 50. Kh5 {[%clk 0:00:15.2]} 50... Bf6 {[%clk
0:00:12.1]} 51. Kg6 {[%clk 0:00:15.5]} 51... Bxh4 {[%clk 0:00:12.3]} 52. f4
{[%clk 0:00:15.4]} 0-1

[Event "Early-Titled-Tuesday-Blitz-January-23-2024"]
[Site "Chess.com"]
[Date "2024.01.23"]
[Round "2"]
[White "ukchessbomber"]
[Black "CFN_Good_Evening"]
[Result "1-0"]
[WhiteElo "2659"]
[BlackElo "1916"]
[TimeControl "180+1"]
[EndTime "8:18:16 PST"]
[Termination "ukchessbomber won by resignation"]

1. Nf3 {[%clk 0:03:00.9]} 1... d5 {[%clk 0:02:59.6]} 2. h3 {[%clk 0:03:00.3]}
2... c5 {[%clk 0:02:58.3]} 3. e3 {[%clk 0:02:58.2]} 3... Nc6 {[%clk 0:02:56.9]}
4. d4 {[%clk 0:02:58.1]} 4... Nf6 {[%clk 0:02:52.5]} 5. a3 {[%clk 0:02:56.6]}
5... cxd4 {[%clk 0:02:36.4]} 6. Nxd4 {[%clk 0:02:55.3]} 6... e5 {[%clk
0:02:34.9]} 7. Nxc6 {[%clk 0:02:54.9]} 7... bxc6 {[%clk 0:02:35.8]} 8. Nd2
{[%clk 0:02:55.6]} 8... e4 {[%clk 0:02:21.5]} 9. Be2 {[%clk 0:02:54.9]} 9... Bd6
{[%clk 0:02:21]} 10. O-O {[%clk 0:02:54.1]} 10... O-O {[%clk 0:02:20.3]} 11. c4
{[%clk 0:02:48.4]} 11... Bc7 {[%clk 0:02:20]} 12. b4 {[%clk 0:02:40.4]} 12...
Qd6 {[%clk 0:02:17.3]} 13. f4 {[%clk 0:02:37.7]} 13... exf3 {[%clk 0:02:17.2]}
14. Nxf3 {[%clk 0:02:37.1]} 14... Ne4 {[%clk 0:02:07]} 15. Bb2 {[%clk 0:02:35]}
15... Qh6 {[%clk 0:01:47.1]} 16. Qd4 {[%clk 0:02:03.7]} 16... Ng3 {[%clk
0:01:05.8]} 17. Rfe1 {[%clk 0:01:29.8]} 17... Nf5 {[%clk 0:01:05.3]} 18. Qc3
{[%clk 0:01:27.1]} 18... Bg3 {[%clk 0:00:47.3]} 19. e4 {[%clk 0:01:21]} 19...
dxe4 {[%clk 0:00:42.1]} 20. Ne5 {[%clk 0:01:21.4]} 20... Bxe1 {[%clk 0:00:35.7]}
21. Rxe1 {[%clk 0:01:22.3]} 21... Qe3+ {[%clk 0:00:27.7]} 22. Qxe3 {[%clk
0:01:12.7]} 22... Nxe3 {[%clk 0:00:28.6]} 23. Nxc6 {[%clk 0:01:13.5]} 23... Be6
{[%clk 0:00:27.1]} 24. c5 {[%clk 0:01:10.2]} 24... f5 {[%clk 0:00:24.4]} 25. Ba6
{[%clk 0:00:58.6]} 25... Nc4 {[%clk 0:00:19.1]} 26. Bc3 {[%clk 0:00:41]} 26...
Kh8 {[%clk 0:00:16.8]} 27. Rd1 {[%clk 0:00:38.3]} 27... Nxa3 {[%clk 0:00:15.8]}
28. Rd6 {[%clk 0:00:37.3]} 28... Bc4 {[%clk 0:00:15.9]} 29. Bxc4 {[%clk
0:00:14.2]} 29... Nxc4 {[%clk 0:00:16.8]} 30. Rd7 {[%clk 0:00:15.1]} 30... Rg8
{[%clk 0:00:14.4]} 31. Ne7 {[%clk 0:00:15.6]} 31... e3 {[%clk 0:00:13.8]} 32.
Nxg8 {[%clk 0:00:13.2]} 32... Rxg8 {[%clk 0:00:14.5]} 33. c6 {[%clk 0:00:13.7]}
33... e2 {[%clk 0:00:13.2]} 34. c7 {[%clk 0:00:12.3]} 34... Nb6 {[%clk
0:00:11.6]} 35. Rd8 {[%clk 0:00:09.2]} 35... h6 {[%clk 0:00:09.6]} 36. Kf2
{[%clk 0:00:08.4]} 36... Kh7 {[%clk 0:00:09]} 37. Kxe2 {[%clk 0:00:08.5]} 37...
Nc8 {[%clk 0:00:09.3]} 38. Bd4 {[%clk 0:00:07.8]} 38... g5 {[%clk 0:00:08.1]}
39. Kd3 {[%clk 0:00:08.2]} 39... g4 {[%clk 0:00:07.3]} 40. hxg4 {[%clk
0:00:08.2]} 40... fxg4 {[%clk 0:00:08.2]} 41. g3 {[%clk 0:00:08.3]} 41... h5
{[%clk 0:00:08.5]} 42. Kc4 {[%clk 0:00:08.8]} 42... h4 {[%clk 0:00:09]} 43. gxh4
{[%clk 0:00:09.7]} 43... g3 {[%clk 0:00:09.7]} 44. Kb5 {[%clk 0:00:09.3]} 44...
g2 {[%clk 0:00:10]} 45. Rxg8 {[%clk 0:00:09.6]} 45... Kxg8 {[%clk 0:00:09.8]}
46. Kc6 {[%clk 0:00:10.2]} 46... Kf7 {[%clk 0:00:06.9]} 47. Kb7 {[%clk
0:00:08.8]} 47... Nd6+ {[%clk 0:00:07]} 48. Kb8 {[%clk 0:00:09.5]} 48... Ke6
{[%clk 0:00:04.6]} 49. c8=Q+ {[%clk 0:00:09.3]} 49... Nxc8 {[%clk 0:00:04.8]}
50. Kxc8 {[%clk 0:00:10.2]} 50... Kd5 {[%clk 0:00:04.7]} 51. Bxa7 {[%clk
0:00:10.8]} 1-0

[Event "Early-Titled-Tuesday-Blitz-January-23-2024"]
[Site "Chess.com"]
[Date "2024.01.23"]
[Round "2"]
[White "LeRoidesChampions"]
[Black "VladimirKramnik"]
[Result "1/2-1/2"]
[WhiteElo "2612"]
[BlackElo "2923"]
[TimeControl "180+1"]
[EndTime "8:18:20 PST"]
[Termination "Game drawn by agreement"]

1. e4 {[%clk 0:03:00.9]} 1... c5 {[%clk 0:02:59.5]} 2. Nf3 {[%clk 0:02:59.8]}
2... d6 {[%clk 0:03:00]} 3. d4 {[%clk 0:02:59.2]} 3... cxd4 {[%clk 0:02:59.6]}
4. Nxd4 {[%clk 0:02:59.9]} 4... Nf6 {[%clk 0:03:00.1]} 5. Nc3 {[%clk 0:03:00.4]}
5... a6 {[%clk 0:03:00.6]} 6. Qd3 {[%clk 0:02:59]} 6... e6 {[%clk 0:02:59]} 7.
a4 {[%clk 0:02:56.4]} 7... Bd7 {[%clk 0:02:58.2]} 8. Be2 {[%clk 0:02:55.1]} 8...
Nc6 {[%clk 0:02:54.7]} 9. O-O {[%clk 0:02:55.4]} 9... Be7 {[%clk 0:02:54.3]} 10.
Nxc6 {[%clk 0:02:50.1]} 10... Bxc6 {[%clk 0:02:54]} 11. a5 {[%clk 0:02:50.6]}
11... O-O {[%clk 0:02:52.1]} 12. Be3 {[%clk 0:02:50.8]} 12... Nd7 {[%clk
0:02:47.6]} 13. b4 {[%clk 0:02:43.8]} 13... Qc7 {[%clk 0:02:33.8]} 14. f4 {[%clk
0:02:36.5]} 14... Rac8 {[%clk 0:02:28.6]} 15. Ra2 {[%clk 0:02:10.6]} 15... Nf6
{[%clk 0:02:14.9]} 16. Bf3 {[%clk 0:02:06.6]} 16... Bd7 {[%clk 0:02:07.6]} 17.
Ra3 {[%clk 0:02:03.3]} 17... e5 {[%clk 0:02:02.6]} 18. Bb6 {[%clk 0:01:52.8]}
18... Qc4 {[%clk 0:01:59.6]} 19. Be2 {[%clk 0:01:46.1]} 19... Qxd3 {[%clk
0:01:36.7]} 20. Bxd3 {[%clk 0:01:47]} 20... exf4 {[%clk 0:01:29.4]} 21. Rxf4
{[%clk 0:01:41.8]} 21... Be6 {[%clk 0:01:29.1]} 22. Nd5 {[%clk 0:01:30.8]} 22...
Bxd5 {[%clk 0:01:20.9]} 23. exd5 {[%clk 0:01:30.8]} 23... Nxd5 {[%clk
0:01:19.8]} 24. Re4 {[%clk 0:01:31.2]} 24... Bf6 {[%clk 0:01:00.6]} 25. Bd4
{[%clk 0:01:24]} 25... Rc7 {[%clk 0:00:47.4]} 26. Bxf6 {[%clk 0:01:23.5]} 26...
Nxf6 {[%clk 0:00:47.4]} 27. Rd4 {[%clk 0:01:23.4]} 27... d5 {[%clk 0:00:47.1]}
28. Rb3 {[%clk 0:01:20]} 28... g6 {[%clk 0:00:45.2]} 29. b5 {[%clk 0:01:20.1]}
29... axb5 {[%clk 0:00:44.8]} 30. Rxb5 {[%clk 0:01:20.7]} 30... Kg7 {[%clk
0:00:45.1]} 31. Rb6 {[%clk 0:01:16.4]} 31... Re8 {[%clk 0:00:44.5]} 32. Rdb4
{[%clk 0:01:13.1]} 32... Ree7 {[%clk 0:00:43.4]} 33. h3 {[%clk 0:01:11.5]} 33...
h5 {[%clk 0:00:42.8]} 34. Rd6 {[%clk 0:01:07.1]} 34... Rc5 {[%clk 0:00:38.2]}
35. a6 {[%clk 0:01:06.4]} 35... bxa6 {[%clk 0:00:37.6]} 36. Rxa6 {[%clk
0:01:04.3]} 36... Ne4 {[%clk 0:00:37.1]} 37. c4 {[%clk 0:00:56.2]} 37... Ng3
{[%clk 0:00:27.5]} 38. Rb5 {[%clk 0:00:50.5]} 38... dxc4 {[%clk 0:00:15.1]} 39.
Rxc5 {[%clk 0:00:46.5]} 39... cxd3 {[%clk 0:00:15.5]} 40. Rd5 {[%clk 0:00:43]}
40... Ne2+ {[%clk 0:00:15.3]} 41. Kf2 {[%clk 0:00:38.8]} 41... Nf4 {[%clk
0:00:15]} 42. Rd4 {[%clk 0:00:38.6]} 42... g5 {[%clk 0:00:11.3]} 43. Ra5 {[%clk
0:00:34.9]} 43... Kg6 {[%clk 0:00:10.1]} 44. h4 {[%clk 0:00:33.5]} 44... f6
{[%clk 0:00:06.8]} 45. hxg5 {[%clk 0:00:33.6]} 45... fxg5 {[%clk 0:00:06.6]} 46.
Rd6+ {[%clk 0:00:34.1]} 46... Re6 {[%clk 0:00:06.4]} 47. Rxe6+ {[%clk
0:00:33.2]} 47... Nxe6 {[%clk 0:00:07]} 48. Rd5 {[%clk 0:00:33.4]} 48... Nf4
{[%clk 0:00:07]} 49. Rd6+ {[%clk 0:00:33.8]} 49... Kf5 {[%clk 0:00:07]} 50. g3
{[%clk 0:00:34.3]} 50... Ng6 {[%clk 0:00:04.6]} 51. Rxd3 {[%clk 0:00:34.4]}
51... h4 {[%clk 0:00:04.1]} 52. gxh4 {[%clk 0:00:33.2]} 52... gxh4 {[%clk
0:00:03]} 53. Ra3 {[%clk 0:00:32.4]} 53... Ne5 {[%clk 0:00:03]} 54. Ra5 {[%clk
0:00:31.5]} 54... Kf4 {[%clk 0:00:02.5]} 1/2-1/2

[Event "Early-Titled-Tuesday-Blitz-January-23-2024"]
[Site "Chess.com"]
[Date "2024.01.23"]
[Round "2"]
[White "Pastore1978"]
[Black "StankovicIvan"]
[Result "0-1"]
[WhiteElo "2288"]
[BlackElo "2521"]
[TimeControl "180+1"]
[EndTime "8:18:23 PST"]
[Termination "StankovicIvan won on time"]

1. e4 {[%clk 0:03:00.9]} 1... c5 {[%clk 0:02:59.3]} 2. Nc3 {[%clk 0:03:00]} 2...
Nc6 {[%clk 0:02:58.9]} 3. Bb5 {[%clk 0:02:59.7]} 3... Nd4 {[%clk 0:02:58.6]} 4.
Nf3 {[%clk 0:02:59]} 4... g6 {[%clk 0:02:57.6]} 5. Nxd4 {[%clk 0:02:53.9]} 5...
cxd4 {[%clk 0:02:57.5]} 6. Ne2 {[%clk 0:02:54.5]} 6... a6 {[%clk 0:02:58]} 7.
Bd3 {[%clk 0:02:52]} 7... Bg7 {[%clk 0:02:58.2]} 8. c3 {[%clk 0:02:52]} 8... d5
{[%clk 0:02:45.7]} 9. cxd4 {[%clk 0:02:31.6]} 9... dxe4 {[%clk 0:02:44.3]} 10.
Bxe4 {[%clk 0:02:32.5]} 10... Nf6 {[%clk 0:02:43]} 11. Bf3 {[%clk 0:02:31.5]}
11... O-O {[%clk 0:02:42.2]} 12. O-O {[%clk 0:02:31.6]} 12... Nd5 {[%clk
0:02:22]} 13. d3 {[%clk 0:02:20.9]} 13... Rb8 {[%clk 0:02:14]} 14. Bg5 {[%clk
0:02:14.1]} 14... Be6 {[%clk 0:02:03.4]} 15. Qd2 {[%clk 0:02:13.3]} 15... Qd7
{[%clk 0:02:02.9]} 16. Bh4 {[%clk 0:02:06]} 16... Rfd8 {[%clk 0:02:01.3]} 17.
Rfe1 {[%clk 0:02:01.4]} 17... Rbc8 {[%clk 0:01:53.2]} 18. a3 {[%clk 0:01:58.2]}
18... Bg4 {[%clk 0:01:34]} 19. Bxd5 {[%clk 0:01:32]} 19... Qxd5 {[%clk
0:01:24.6]} 20. Bxe7 {[%clk 0:01:32.1]} 20... Re8 {[%clk 0:01:18.5]} 21. Bh4
{[%clk 0:01:25]} 21... Bxe2 {[%clk 0:01:09.1]} 22. Rxe2 {[%clk 0:01:25.9]} 22...
Qxd4 {[%clk 0:01:03.5]} 23. Bg3 {[%clk 0:01:10.3]} 23... Rxe2 {[%clk 0:01:01.9]}
24. Qxe2 {[%clk 0:01:11.2]} 24... Qxb2 {[%clk 0:00:59]} 25. Qxb2 {[%clk
0:01:03.8]} 25... Bxb2 {[%clk 0:00:59.9]} 26. Rb1 {[%clk 0:00:55]} 26... Bxa3
{[%clk 0:00:59.9]} 27. h4 {[%clk 0:00:55.6]} 27... Rc1+ {[%clk 0:00:59.2]} 28.
Rxc1 {[%clk 0:00:55.2]} 28... Bxc1 {[%clk 0:01:00.1]} 29. Kf1 {[%clk 0:00:54.3]}
29... f5 {[%clk 0:00:56.1]} 30. Be5 {[%clk 0:00:52.6]} 30... Kf7 {[%clk
0:00:55.5]} 31. Ke2 {[%clk 0:00:52.9]} 31... Ke6 {[%clk 0:00:55.7]} 32. Bc3
{[%clk 0:00:49]} 32... Kd5 {[%clk 0:00:54.5]} 33. Kd1 {[%clk 0:00:49.1]} 33...
Bh6 {[%clk 0:00:52.8]} 34. Kc2 {[%clk 0:00:48.9]} 34... Bf8 {[%clk 0:00:52.1]}
35. Kb3 {[%clk 0:00:47.1]} 35... Bc5 {[%clk 0:00:50.9]} 36. f3 {[%clk 0:00:47]}
36... Bd4 {[%clk 0:00:50.7]} 37. Bd2 {[%clk 0:00:44.2]} 37... Bf2 {[%clk
0:00:45.3]} 38. h5 {[%clk 0:00:36.7]} 38... gxh5 {[%clk 0:00:44.8]} 39. Bc3
{[%clk 0:00:35.2]} 39... b5 {[%clk 0:00:42.6]} 40. Kb4 {[%clk 0:00:32.5]} 40...
Bd4 {[%clk 0:00:41.2]} 41. Bd2 {[%clk 0:00:31.6]} 41... Bb6 {[%clk 0:00:41]} 42.
Bc3 {[%clk 0:00:29.1]} 42... Kc6 {[%clk 0:00:41]} 43. Be5 {[%clk 0:00:26.4]}
43... a5+ {[%clk 0:00:41.3]} 44. Kb3 {[%clk 0:00:26]} 44... Kd5 {[%clk
0:00:41.2]} 45. Bb2 {[%clk 0:00:19.5]} 45... Bc5 {[%clk 0:00:40.6]} 46. Bc3
{[%clk 0:00:17.8]} 46... a4+ {[%clk 0:00:40.6]} 47. Kb2 {[%clk 0:00:17.1]} 47...
b4 {[%clk 0:00:41.1]} 48. Be1 {[%clk 0:00:12.6]} 48... Be7 {[%clk 0:00:32.2]}
49. Bf2 {[%clk 0:00:12]} 49... Bf6+ {[%clk 0:00:30.6]} 50. Ka2 {[%clk 0:00:12]}
50... Bd4 {[%clk 0:00:27.9]} 51. Be1 {[%clk 0:00:12.2]} 51... b3+ {[%clk
0:00:27.4]} 52. Ka3 {[%clk 0:00:09.8]} 52... Bc5+ {[%clk 0:00:20.4]} 53. Kb2
{[%clk 0:00:06.7]} 53... Be7 {[%clk 0:00:20.3]} 54. Bc3 {[%clk 0:00:05.8]} 54...
Bc5 {[%clk 0:00:18.7]} 55. Be1 {[%clk 0:00:04.5]} 55... Bd6 {[%clk 0:00:19]} 56.
Bd2 {[%clk 0:00:03]} 56... Kd4 {[%clk 0:00:19.2]} 0-1

[Event "Early-Titled-Tuesday-Blitz-January-23-2024"]
[Site "Chess.com"]
[Date "2024.01.23"]
[Round "2"]
[White "VomDingJetztHer"]
[Black "gau_npukyputb"]
[Result "0-1"]
[WhiteElo "2388"]
[BlackElo "2700"]
[TimeControl "180+1"]
[EndTime "8:18:24 PST"]
[Termination "gau_npukyputb won by checkmate"]

1. e4 {[%clk 0:03:00.9]} 1... a6 {[%clk 0:02:59.8]} 2. d4 {[%clk 0:03:00.8]}
2... b5 {[%clk 0:02:59.9]} 3. Bd3 {[%clk 0:03:00.3]} 3... Bb7 {[%clk 0:03:00.5]}
4. Nf3 {[%clk 0:02:57]} 4... e6 {[%clk 0:02:59.9]} 5. Qe2 {[%clk 0:02:57.5]}
5... Nf6 {[%clk 0:02:59.9]} 6. O-O {[%clk 0:02:57.5]} 6... c5 {[%clk 0:03:00]}
7. c3 {[%clk 0:02:56.7]} 7... cxd4 {[%clk 0:03:00.1]} 8. cxd4 {[%clk 0:02:56.7]}
8... d6 {[%clk 0:03:00.8]} 9. Bf4 {[%clk 0:02:55]} 9... Be7 {[%clk 0:03:01.2]}
10. h3 {[%clk 0:02:55.2]} 10... O-O {[%clk 0:03:01.5]} 11. a3 {[%clk 0:02:55.2]}
11... Nbd7 {[%clk 0:03:01.2]} 12. Nc3 {[%clk 0:02:55.4]} 12... Nb6 {[%clk
0:03:00.8]} 13. b3 {[%clk 0:02:54.5]} 13... Rc8 {[%clk 0:03:00.3]} 14. Rfc1
{[%clk 0:02:54.6]} 14... Rc7 {[%clk 0:02:56.1]} 15. Nd1 {[%clk 0:02:51.2]} 15...
Rxc1 {[%clk 0:02:51.9]} 16. Rxc1 {[%clk 0:02:52.1]} 16... Qa8 {[%clk 0:02:51.9]}
17. Nd2 {[%clk 0:02:45.2]} 17... Rc8 {[%clk 0:02:49.4]} 18. Rxc8+ {[%clk
0:02:44.4]} 18... Qxc8 {[%clk 0:02:50.3]} 19. Nb1 {[%clk 0:02:39.2]} 19... Nbd7
{[%clk 0:02:42.7]} 20. f3 {[%clk 0:02:37.4]} 20... Qd8 {[%clk 0:02:40.8]} 21.
Qc2 {[%clk 0:02:35.9]} 21... h6 {[%clk 0:02:39.6]} 22. Bg3 {[%clk 0:02:33.9]}
22... Nh5 {[%clk 0:02:39.1]} 23. Bf2 {[%clk 0:02:32.1]} 23... Nf4 {[%clk
0:02:38.8]} 24. Bf1 {[%clk 0:02:30.5]} 24... e5 {[%clk 0:02:38.8]} 25. Ndc3
{[%clk 0:02:23.4]} 25... exd4 {[%clk 0:02:34]} 26. Bxd4 {[%clk 0:02:23.3]} 26...
Ne5 {[%clk 0:02:34.7]} 27. Qd2 {[%clk 0:02:17.6]} 27... Ne6 {[%clk 0:02:32.6]}
28. Bf2 {[%clk 0:02:14.6]} 28... Bg5 {[%clk 0:02:26.4]} 29. Qd1 {[%clk
0:02:09.2]} 29... Bf6 {[%clk 0:02:19.6]} 30. Nd5 {[%clk 0:02:08.4]} 30... Bxd5
{[%clk 0:02:17.2]} 31. Qxd5 {[%clk 0:02:09.3]} 31... Nf4 {[%clk 0:02:18.1]} 32.
Qd2 {[%clk 0:02:05.8]} 32... Bg5 {[%clk 0:02:17]} 33. Be3 {[%clk 0:02:04.8]}
33... Qf6 {[%clk 0:02:15.7]} 34. Kh1 {[%clk 0:01:48.1]} 34... Nxh3 {[%clk
0:02:09.5]} 35. Bxg5 {[%clk 0:01:33.2]} 35... Nxg5 {[%clk 0:02:03.1]} 36. a4
{[%clk 0:01:25.4]} 36... bxa4 {[%clk 0:01:59.8]} 37. bxa4 {[%clk 0:01:25.4]}
37... a5 {[%clk 0:02:00.4]} 38. Qxa5 {[%clk 0:01:24.7]} 38... h5 {[%clk
0:01:55.7]} 39. Nc3 {[%clk 0:01:13]} 39... Ngxf3 {[%clk 0:01:54.1]} 40. gxf3
{[%clk 0:01:01.7]} 40... Qxf3+ {[%clk 0:01:53.8]} 41. Bg2 {[%clk 0:01:01.7]}
41... Qg3 {[%clk 0:01:50.4]} 42. Qd8+ {[%clk 0:00:31.7]} 42... Kh7 {[%clk
0:01:49.7]} 43. Ne2 {[%clk 0:00:32.3]} 43... Qe3 {[%clk 0:01:36.3]} 44. Ng1
{[%clk 0:00:27.1]} 44... Ng4 {[%clk 0:01:28.4]} 45. Qh4 {[%clk 0:00:26.6]} 45...
Nf2+ {[%clk 0:01:27.8]} 46. Kh2 {[%clk 0:00:26.8]} 46... Ng4+ {[%clk 0:01:28.7]}
47. Kh1 {[%clk 0:00:26.8]} 47... Nf2+ {[%clk 0:01:28.4]} 48. Kh2 {[%clk
0:00:27.1]} 48... Kh6 {[%clk 0:01:23.9]} 49. Nf3 {[%clk 0:00:15]} 49... Ng4+
{[%clk 0:01:22.5]} 50. Kh1 {[%clk 0:00:11.3]} 50... Nf2+ {[%clk 0:01:21.7]} 51.
Kh2 {[%clk 0:00:11.4]} 51... Ng4+ {[%clk 0:01:22.3]} 52. Kh1 {[%clk 0:00:11.5]}
52... f6 {[%clk 0:01:21.4]} 53. a5 {[%clk 0:00:10.2]} 53... Nf2+ {[%clk
0:01:14.8]} 54. Kh2 {[%clk 0:00:10.4]} 54... Ng4+ {[%clk 0:01:15.7]} 55. Kh1
{[%clk 0:00:10.8]} 55... Qa3 {[%clk 0:01:14.7]} 56. Qe1 {[%clk 0:00:10.3]} 56...
g5 {[%clk 0:01:12.9]} 57. Nd4 {[%clk 0:00:06.8]} 57... h4 {[%clk 0:01:10.2]} 58.
Nf5+ {[%clk 0:00:07.1]} 58... Kg6 {[%clk 0:01:10.7]} 59. Qe2 {[%clk 0:00:05.3]}
59... Ne5 {[%clk 0:01:09.7]} 60. Ne7+ {[%clk 0:00:02.5]} 60... Kf7 {[%clk
0:01:10.1]} 61. Nd5 {[%clk 0:00:03.2]} 61... g4 {[%clk 0:01:07.9]} 62. Qf2
{[%clk 0:00:03.2]} 62... Qa1+ {[%clk 0:01:06.4]} 63. Bf1 {[%clk 0:00:03.5]}
63... g3 {[%clk 0:01:06.5]} 64. Qxf6+ {[%clk 0:00:03.6]} 64... Kg8 {[%clk
0:01:07.4]} 65. Ne7+ {[%clk 0:00:03.5]} 65... Kh7 {[%clk 0:01:08.3]} 66. Qxh4+
{[%clk 0:00:02.8]} 66... Kg7 {[%clk 0:01:08]} 67. Qxg3+ {[%clk 0:00:03.3]} 67...
Kf7 {[%clk 0:01:08.4]} 68. Qf2+ {[%clk 0:00:02.3]} 68... Kxe7 {[%clk 0:01:08.6]}
69. a6 {[%clk 0:00:02.6]} 69... Ng4 {[%clk 0:01:06.9]} 70. Qe2 {[%clk
0:00:02.7]} 70... Ne5 {[%clk 0:01:06.4]} 71. Kg2 {[%clk 0:00:03]} 71... Qa3
{[%clk 0:01:06]} 72. Qb5 {[%clk 0:00:02.3]} 72... Qa2+ {[%clk 0:01:05.9]} 73.
Be2 {[%clk 0:00:02.3]} 73... Qa3 {[%clk 0:01:05.6]} 74. Qb7+ {[%clk 0:00:01.9]}
74... Kf6 {[%clk 0:01:06]} 75. a7 {[%clk 0:00:02.6]} 75... Qe3 {[%clk
0:01:06.4]} 76. a8=Q {[%clk 0:00:02.7]} 76... Qxe2+ {[%clk 0:01:06.6]} 77. Kg1
{[%clk 0:00:03.3]} 77... Nf3+ {[%clk 0:01:05.9]} 78. Kh1 {[%clk 0:00:03.8]}
78... Qf1# {[%clk 0:01:06.6]} 0-1